[Event "RUS-ch Women Blitz 2019"]
[Site "Sochi"]
[Date "2019.10.17"]
[Round "12.2"]
[White "Belenkaya, Dina"]
[Black "Pogonina, Natalija"]
[Result "1/2-1/2"]
[ECO "C44"]
[WhiteElo "2300"]
[BlackElo "2479"]
[Annotator "ChessBase"]
[PlyCount "86"]
[EventDate "2019.10.17"]
[EventType "swiss"]
[EventCountry "RUS"]
[SourceTitle "playchess.com"]
[Source "ChessBase"]
[SourceQuality "1"]
[TimeControl "180+2"]

1. e4 {[%emt 0:00:00]} e5 {[%emt 0:00:00]} 2. Nf3 {[%emt 0:00:01]} Nc6 {[%emt 0:00:01]} 3. d4 {[%emt 0:00:01]} exd4 {[%emt 0:00:03]} 4. Nxd4 {[%emt 0:00:01]} Nf6 {[%emt 0:00:02]} 5. Nxc6 {[%emt 0:00:01]} bxc6 {[%emt 0:00:03]} 6. Bd3 {[%emt 0:00:01]} d5 {[%emt 0:00:02]} 7. exd5 {[%emt 0:00:01]} cxd5 {[%emt 0:00:02]} 8. O-O {[%emt 0:00:02]} Be7 {[%emt 0:00:03]} 9. c4 {[%emt 0:00:01]} c6 {[%emt 0:00:12]} 10. Nd2 {[%emt 0:00:24]} O-O {[%emt 0:00:03]} 11. Qc2 {[%emt 0:00:23]} Bg4 {[%emt 0:00:09]} 12. Rb1 {[%emt 0:00:15]} Bh5 {[%emt 0:00:04]} 13. b4 {[%emt 0:00:07]} Bg6 {[%emt 0:00:05]} 14. Bxg6 {[%emt 0:00:06]} hxg6 {[%emt 0:00:02]} 15. Rd1 {[%emt 0:00:03]} Rb8 {[%emt 0:00:08]} 16. a3 {[%emt 0:00:06]} Re8 {[%emt 0:00:12]} 17. Nb3 {[%emt 0:00:04]} Bd6 {[%emt 0:00:08]} 18. h3 {[%emt 0:00:13]} Qe7 {[%emt 0:00:09]} 19. Bb2 {[%emt 0:00:12]} Rbc8 {[%emt 0:00:09]} 20. Bd4 {[%emt 0:00:09]} Bb8 {[%emt 0:00:05]} 21. Nc5 {[%emt 0:00:07]} Qc7 {[%emt 0:00:06]} 22. g3 {[%emt 0:00:04]} Qe7 {[%emt 0:00:08]} 23. Kg2 {[%emt 0:00:25]} Bd6 {[%emt 0:00:13]} 24. cxd5 {[%emt 0:00:26]} Nxd5 {[%emt 0:00:05]} 25. Qd3 {[%emt 0:00:09]} Qg5 {[%emt 0:00:23]} 26. Kh2 {[%emt 0:00:06]} Be5 {[%emt 0:00:06]} 27. Bxe5 {[%emt 0:00:07]} Qxe5 {[%emt 0:00:02]} 28. Rbc1 {[%emt 0:00:05]} g5 {[%emt 0:00:18]} 29. Qf3 {[%emt 0:00:01]} Qe2 {[%emt 0:00:07]} 30. Qxe2 {[%emt 0:00:07]} Rxe2 {[%emt 0:00:01]} 31. Nd3 {[%emt 0:00:03]} Ra2 {[%emt 0:00:05]} 32. Ra1 {[%emt 0:00:06]} Re2 {[%emt 0:00:12]} 33. Re1 {[%emt 0:00:01]} Rce8 {[%emt 0:00:01]} 34. Kg1 {[%emt 0:00:03]} Nb6 {[%emt 0:00:05]} 35. Rxe2 {[%emt 0:00:03]} Rxe2 {[%emt 0:00:01]} 36. Rc1 {[%emt 0:00:01]} Ra2 {[%emt 0:00:05]} 37. Rxc6 {[%emt 0:00:03]} Rxa3 {[%emt 0:00:02]} 38. Ne5 {[%emt 0:00:01]} f6 {[%emt 0:00:05]} 39. Nc4 {[%emt 0:00:05]} Ra1+ {[%emt 0:00:11]} 40. Kg2 {[%emt 0:00:01]} Rc1 {[%emt 0:00:03]} 41. Na5 {[%emt 0:00:00]} Rb1 {[%emt 0:00:02]} 42. Rc7 {[%emt 0:00:03]} Rxb4 {[%emt 0:00:04]} 43. Rxa7 {[%emt 0:00:01]} Nd5 {[%emt 0:00:04]} 1/2-1/2

[Event "RUS-ch Women Blitz 2019"]
[Site "Sochi"]
[Date "2019.10.17"]
[Round "12.3"]
[White "Garifullina, Leya"]
[Black "Kovanova, Baira"]
[Result "1-0"]
[ECO "C92"]
[WhiteElo "2330"]
[BlackElo "2344"]
[Annotator "NA"]
[PlyCount "61"]
[EventDate "2019.10.17"]
[EventType "swiss"]
[EventCountry "RUS"]
[SourceTitle "playchess.com"]
[Source "ChessBase"]
[SourceQuality "1"]
[TimeControl "180+2"]

1. e4 {[%emt 0:00:01]} e5 {[%emt 0:00:00]} 2. Nf3 {[%emt 0:00:01]} Nc6 {[%emt 0:00:00]} 3. Bb5 {[%emt 0:00:01]} a6 {[%emt 0:00:01]} 4. Ba4 {[%emt 0:00:01]} Nf6 {[%emt 0:00:01]} 5. O-O {[%emt 0:00:01]} Be7 {[%emt 0:00:01]} 6. Re1 {[%emt 0:00:01]} b5 {[%emt 0:00:01]} 7. Bb3 {[%emt 0:00:01]} d6 {[%emt 0:00:01]} 8. c3 {[%emt 0:00:01]} O-O {[%emt 0:00:02]} 9. h3 {[%emt 0:00:01]} Bb7 {[%emt 0:00:15]} 10. d4 {[%emt 0:00:03]} Nd7 {[%emt 0:00:04]} 11. Nbd2 {[%emt 0:00:05]} exd4 {[%emt 0:00:01]} 12. cxd4 {[%emt 0:00:02]} Bf6 {[%emt 0:00:01]} 13. Nf1 {[%emt 0:00:03]} Na5 {[%emt 0:00:01]} 14. Bc2 {[%emt 0:00:01]} c5 {[%emt 0:00:02]} 15. Bf4 {[%emt 0:00:13]} Re8 {[%emt 0:00:28]} 16. Ng3 {[%emt 0:00:16]} Nc6 {[%emt 0:00:12]} 17. Nf5 {[%emt 0:00:06]} Be7 {[%emt 0:00:47]} 18. Bxd6 {[%emt 0:00:08]} cxd4 {[%emt 0:00:24]} 19. Bxe7 {[%emt 0:00:03]} Nxe7 {[%emt 0:00:03]} 20. Nd6 {[%emt 0:00:00]} Rf8 {[%emt 0:00:17]} 21. Nxb7 {[%emt 0:00:06]} Qb6 {[%emt 0:00:07]} 22. e5 {[%emt 0:00:03]} Qxb7 {[%emt 0:00:06]} 23. Be4 {[%emt 0:00:01]} Nd5 {[%emt 0:00:28]} 24. Nxd4 {[%emt 0:00:15]} Rad8 {[%emt 0:00:07]} 25. Nf5 {[%emt 0:00:08]} Nxe5 {[%emt 0:00:02]} 26. Bxd5 {[%emt 0:00:02]} Qc7 {[%emt 0:00:10]} 27. Qb3 {[%emt 0:00:02]} g6 {[%emt 0:00:02]} 28. Ne3 {[%emt 0:00:07]} Kg7 {[%emt 0:00:02]} 29. Rac1 {[%emt 0:00:01]} Qb6 {[%emt 0:00:05]} 30. Qc3 {[%emt 0:00:04]} f6 {[%emt 0:00:01]} 31. Qc7+ {[%emt 0:00:02]} 1-0

[Event "RUS-ch Women Blitz 2019"]
[Site "Sochi"]
[Date "2019.10.17"]
[Round "12.4"]
[White "Charochkina, Daria"]
[Black "Tomilova, Elena"]
[Result "0-1"]
[ECO "A01"]
[WhiteElo "2355"]
[BlackElo "2345"]
[Annotator "NA"]
[PlyCount "76"]
[EventDate "2019.10.17"]
[EventType "swiss"]
[EventCountry "RUS"]
[SourceTitle "playchess.com"]
[Source "ChessBase"]
[SourceQuality "1"]
[TimeControl "180+2"]

1. b3 {[%emt 0:00:00]} e5 {[%emt 0:00:00]} 2. Bb2 {[%emt 0:00:00]} Nc6 {[%emt 0:00:01]} 3. e3 {[%emt 0:00:01]} Nf6 {[%emt 0:00:02]} 4. Bb5 {[%emt 0:00:08]} Bd6 {[%emt 0:00:02]} 5. Ne2 {[%emt 0:00:05]} a6 {[%emt 0:00:07]} 6. Bxc6 {[%emt 0:00:03]} dxc6 {[%emt 0:00:02]} 7. O-O {[%emt 0:00:05]} O-O {[%emt 0:00:04]} 8. d4 {[%emt 0:00:02]} e4 {[%emt 0:00:13]} 9. Ng3 {[%emt 0:00:13]} Re8 {[%emt 0:00:09]} 10. c4 {[%emt 0:00:02]} Bg4 {[%emt 0:00:28]} 11. Qc2 {[%emt 0:00:03]} Qe7 {[%emt 0:00:10]} 12. Nd2 {[%emt 0:00:02]} Bxg3 {[%emt 0:00:07]} 13. fxg3 {[%emt 0:00:06]} Bh5 {[%emt 0:00:33]} 14. Rf4 {[%emt 0:00:12]} Bg6 {[%emt 0:00:05]} 15. Raf1 {[%emt 0:00:11]} Nh5 {[%emt 0:00:12]} 16. Rh4 {[%emt 0:00:09]} Qg5 {[%emt 0:00:07]} 17. Qc3 {[%emt 0:00:25]} f5 {[%emt 0:00:09]} 18. d5 {[%emt 0:00:03]} Nf6 {[%emt 0:00:19]} 19. dxc6 {[%emt 0:00:03]} bxc6 {[%emt 0:00:02]} 20. Rhf4 {[%emt 0:00:09]} Rad8 {[%emt 0:00:02]} 21. Nb1 {[%emt 0:00:21]} Rd3 {[%emt 0:00:08]} 22. Qa5 {[%emt 0:00:01]} Rxe3 {[%emt 0:00:13]} 23. Qxa6 {[%emt 0:00:02]} Re2 {[%emt 0:00:04]} 24. Ba1 {[%emt 0:00:25]} Ng4 {[%emt 0:00:09]} 25. Bd4 {[%emt 0:00:14]} Rd8 {[%emt 0:00:06]} 26. Bc5 {[%emt 0:00:17]} Rd3 {[%emt 0:00:04]} 27. Qxc6 {[%emt 0:00:03]} Nxh2 {[%emt 0:00:04]} 28. Qe6+ {[%emt 0:00:05]} Bf7 {[%emt 0:00:03]} 29. Qc8+ {[%emt 0:00:03]} Rd8 {[%emt 0:00:01]} 30. Qxc7 {[%emt 0:00:09]} Nxf1 31. Rxf1 {[%emt 0:00:03]} Re8 {[%emt 0:00:08]} 32. Nc3 {[%emt 0:00:04]} Rc2 {[%emt 0:00:02]} 33. Nb5 {[%emt 0:00:07]} Qd2 {[%emt 0:00:02]} 34. Rf2 {[%emt 0:00:02]} Rc1+ {[%emt 0:00:03]} 35. Rf1 {[%emt 0:00:03]} Rc2 {[%emt 0:00:02]} 36. Bf2 {[%emt 0:00:03]} e3 {[%emt 0:00:01]} 37. Nd6 {[%emt 0:00:01]} exf2+ {[%emt 0:00:02]} 38. Kh1 {[%emt 0:00:07]} Qh6# {[%emt 0:00:10]} 0-1

[Event "RUS-ch Women Blitz 2019"]
[Site "Sochi"]
[Date "2019.10.17"]
[Round "12.5"]
[White "Chernyak, Viktoria"]
[Black "Voit, Daria"]
[Result "0-1"]
[ECO "A20"]
[WhiteElo "2284"]
[BlackElo "2336"]
[Annotator "NA"]
[PlyCount "62"]
[EventDate "2019.10.17"]
[EventType "swiss"]
[EventCountry "RUS"]
[SourceTitle "playchess.com"]
[Source "ChessBase"]
[SourceQuality "1"]
[TimeControl "180+2"]

1. c4 {[%emt 0:00:00]} e5 {[%emt 0:00:00]} 2. g3 {[%emt 0:00:00]} Nf6 {[%emt 0:00:01]} 3. Bg2 {[%emt 0:00:01]} d5 {[%emt 0:00:00]} 4. cxd5 {[%emt 0:00:01]} Nxd5 {[%emt 0:00:01]} 5. Nf3 {[%emt 0:00:01]} Nc6 {[%emt 0:00:01]} 6. O-O {[%emt 0:00:09]} Nb6 {[%emt 0:00:02]} 7. Nc3 {[%emt 0:00:01]} Be7 {[%emt 0:00:05]} 8. d3 {[%emt 0:00:01]} O-O {[%emt 0:00:04]} 9. a3 {[%emt 0:00:01]} Be6 {[%emt 0:00:08]} 10. b4 {[%emt 0:00:04]} f6 {[%emt 0:00:01]} 11. Be3 {[%emt 0:00:17]} a5 {[%emt 0:00:12]} 12. b5 {[%emt 0:00:11]} Nd4 {[%emt 0:00:01]} 13. Nd2 {[%emt 0:00:07]} c6 {[%emt 0:00:14]} 14. bxc6 {[%emt 0:00:07]} bxc6 {[%emt 0:00:01]} 15. f4 {[%emt 0:00:33]} Rb8 {[%emt 0:00:31]} 16. fxe5 {[%emt 0:00:06]} fxe5 {[%emt 0:00:01]} 17. Rxf8+ {[%emt 0:00:39]} Qxf8 {[%emt 0:00:08]} 18. Nde4 {[%emt 0:00:07]} Bb3 {[%emt 0:00:11]} 19. Qd2 {[%emt 0:00:08]} Nd5 {[%emt 0:00:13]} 20. Rf1 {[%emt 0:00:12]} Qe8 {[%emt 0:00:02]} 21. Nxd5 {[%emt 0:00:06]} Bxd5 {[%emt 0:00:11]} 22. a4 {[%emt 0:00:17]} Bb4 {[%emt 0:00:12]} 23. Qb2 {[%emt 0:00:10]} Bc3 {[%emt 0:00:37]} 24. Qa3 {[%emt 0:00:07]} Nxe2+ {[%emt 0:00:02]} 25. Kh1 {[%emt 0:00:01]} Bd4 {[%emt 0:00:23]} 26. Bg5 {[%emt 0:00:08]} Qg6 {[%emt 0:00:12]} 27. Be7 {[%emt 0:00:07]} h6 {[%emt 0:00:03]} 28. Bd6 {[%emt 0:00:06]} Rb3 {[%emt 0:00:04]} 29. Qa2 {[%emt 0:00:03]} Rb2 {[%emt 0:00:02]} 30. Qa3 {[%emt 0:00:01]} Bxe4 {[%emt 0:00:06]} 31. Bxe4 {[%emt 0:00:02]} Nxg3+ {[%emt 0:00:01]} 0-1

[Event "RUS-ch Women Blitz 2019"]
[Site "Sochi"]
[Date "2019.10.17"]
[Round "12.6"]
[White "Ambartsumova, Karina"]
[Black "Afonasieva, Anna"]
[Result "1/2-1/2"]
[ECO "A11"]
[WhiteElo "2341"]
[BlackElo "2312"]
[Annotator "NA"]
[PlyCount "136"]
[EventDate "2019.10.17"]
[EventType "swiss"]
[EventCountry "RUS"]
[SourceTitle "playchess.com"]
[Source "ChessBase"]
[SourceQuality "1"]
[TimeControl "180+2"]

1. c4 {[%emt 0:00:00]} c6 {[%emt 0:00:00]} 2. Nf3 {[%emt 0:00:02]} d5 {[%emt 0:00:00]} 3. e3 {[%emt 0:00:01]} Nf6 {[%emt 0:00:01]} 4. Nc3 {[%emt 0:00:01]} e6 {[%emt 0:00:01]} 5. b3 {[%emt 0:00:01]} Nbd7 {[%emt 0:00:02]} 6. Bb2 {[%emt 0:00:01]} Bd6 {[%emt 0:00:01]} 7. Be2 {[%emt 0:00:01]} O-O {[%emt 0:00:02]} 8. Qc2 {[%emt 0:00:00]} Qe7 {[%emt 0:00:11]} 9. Rg1 {[%emt 0:00:02]} dxc4 {[%emt 0:00:55]} 10. bxc4 {[%emt 0:00:08]} e5 {[%emt 0:00:20]} 11. g4 {[%emt 0:00:10]} e4 {[%emt 0:00:03]} 12. Nd4 {[%emt 0:00:20]} Nc5 {[%emt 0:00:02]} 13. g5 {[%emt 0:00:06]} Ne8 {[%emt 0:00:03]} 14. h4 {[%emt 0:00:04]} Be5 {[%emt 0:00:08]} 15. O-O-O {[%emt 0:00:45]} Bd7 {[%emt 0:00:24]} 16. h5 {[%emt 0:00:02]} b5 {[%emt 0:00:04]} 17. Nb1 {[%emt 0:01:07]} Na4 {[%emt 0:00:05]} 18. Ba3 {[%emt 0:00:12]} Bd6 {[%emt 0:00:09]} 19. Bxd6 {[%emt 0:00:12]} Qxd6 {[%emt 0:00:01]} 20. d3 {[%emt 0:00:02]} Qb4 {[%emt 0:00:17]} 21. Nb3 {[%emt 0:00:04]} Be6 {[%emt 0:00:23]} 22. h6 {[%emt 0:00:10]} g6 {[%emt 0:00:02]} 23. c5 {[%emt 0:00:09]} exd3 {[%emt 0:00:09]} 24. Bxd3 {[%emt 0:00:02]} Bxb3 {[%emt 0:00:03]} 25. Qxb3 {[%emt 0:00:01]} Qxc5+ {[%emt 0:00:01]} 26. Bc2 {[%emt 0:00:01]} Nc7 {[%emt 0:00:07]} 27. Qd3 {[%emt 0:00:03]} Ne6 {[%emt 0:00:02]} 28. Qd6 {[%emt 0:00:05]} Rad8 {[%emt 0:00:03]} 29. Qxc5 {[%emt 0:00:01]} Naxc5 {[%emt 0:00:01]} 30. f4 {[%emt 0:00:02]} Nc7 {[%emt 0:00:04]} 31. Nc3 {[%emt 0:00:01]} b4 {[%emt 0:00:01]} 32. Ne4 {[%emt 0:00:02]} Nxe4 {[%emt 0:00:04]} 33. Bxe4 {[%emt 0:00:01]} c5 {[%emt 0:00:00]} 34. Bc6 {[%emt 0:00:02]} Ne6 {[%emt 0:00:06]} 35. Kc2 {[%emt 0:00:00]} c4 {[%emt 0:00:03]} 36. Bd5 {[%emt 0:00:03]} c3 {[%emt 0:00:04]} 37. Bc4 {[%emt 0:00:03]} Nc5 {[%emt 0:00:01]} 38. Rd4 {[%emt 0:00:03]} a5 {[%emt 0:00:04]} 39. Rgd1 {[%emt 0:00:02]} Rde8 {[%emt 0:00:00]} 40. Re1 {[%emt 0:00:02]} a4 {[%emt 0:00:02]} 41. e4 {[%emt 0:00:01]} Rb8 {[%emt 0:00:03]} 42. e5 {[%emt 0:00:02]} b3+ {[%emt 0:00:01]} 43. axb3 {[%emt 0:00:01]} axb3+ {[%emt 0:00:01]} 44. Kxc3 {[%emt 0:00:01]} b2 {[%emt 0:00:01]} 45. Rb1 {[%emt 0:00:02]} Rfc8 {[%emt 0:00:04]} 46. Kc2 {[%emt 0:00:07]} Ne6 {[%emt 0:00:01]} 47. Re4 {[%emt 0:00:02]} Rb4 {[%emt 0:00:02]} 48. Kc3 {[%emt 0:00:00]} Rb7 {[%emt 0:00:07]} 49. Rxb2 {[%emt 0:00:02]} Rbc7 {[%emt 0:00:01]} 50. Rb4 {[%emt 0:00:01]} Nc5 {[%emt 0:00:02]} 51. Re1 {[%emt 0:00:01]} Na6 {[%emt 0:00:01]} 52. Ra4 {[%emt 0:00:01]} Nc5 {[%emt 0:00:01]} 53. Rb4 {[%emt 0:00:01]} Na6 {[%emt 0:00:01]} 54. Ra4 {[%emt 0:00:01]} Nc5 {[%emt 0:00:01]} 55. Ra5 {[%emt 0:00:05]} Nb7 {[%emt 0:00:03]} 56. Ra4 Nc5 57. Rb4 {[%emt 0:00:03]} Na6 {[%emt 0:00:04]} 58. Ra4 {[%emt 0:00:02]} Nc5 {[%emt 0:00:00]} 59. Rb4 {[%emt 0:00:03]} Na6 {[%emt 0:00:01]} 60. Ra4 {[%emt 0:00:03]} Nc5 {[%emt 0:00:01]} 61. Rb4 {[%emt 0:00:02]} Na6 {[%emt 0:00:01]} 62. Ra4 {[%emt 0:00:01]} Nc5 {[%emt 0:00:01]} 63. Rb4 {[%emt 0:00:04]} Na6 {[%emt 0:00:01]} 64. Ra4 {[%emt 0:00:02]} Nc5 {[%emt 0:00:00]} 65. Ra5 {[%emt 0:00:02]} Nb7 {[%emt 0:00:03]} 66. Ra4 {[%emt 0:00:01]} Nc5 {[%emt 0:00:01]} 67. Ra3 {[%emt 0:00:05]} Nd7 {[%emt 0:00:04]} 68. Re4 {[%emt 0:00:03]} Nb6 {[%emt 0:00:01]} 1/2-1/2

[Event "RUS-ch Women Blitz 2019"]
[Site "Sochi"]
[Date "2019.10.17"]
[Round "12.7"]
[White "Guseva, Marina"]
[Black "Filippova, Darya"]
[Result "1-0"]
[ECO "A40"]
[WhiteElo "2366"]
[BlackElo "2010"]
[Annotator "NA"]
[PlyCount "33"]
[EventDate "2019.10.17"]
[EventType "swiss"]
[EventCountry "RUS"]
[SourceTitle "playchess.com"]
[Source "ChessBase"]
[SourceQuality "1"]
[TimeControl "180+2"]

1. d4 {[%emt 0:00:00]} e6 {[%emt 0:00:00]} 2. c4 {[%emt 0:00:00]} b6 {[%emt 0:00:01]} 3. e4 {[%emt 0:00:02]} Bb7 {[%emt 0:00:01]} 4. Bd3 {[%emt 0:00:01]} f5 {[%emt 0:00:02]} 5. exf5 {[%emt 0:00:02]} exf5 {[%emt 0:00:18]} 6. Nf3 {[%emt 0:00:21]} g6 {[%emt 0:00:05]} 7. O-O {[%emt 0:00:02]} Be7 {[%emt 0:00:07]} 8. Re1 {[%emt 0:00:04]} Nf6 {[%emt 0:00:05]} 9. Bh6 {[%emt 0:00:03]} Ne4 {[%emt 0:00:17]} 10. Nc3 {[%emt 0:00:23]} d5 {[%emt 0:00:15]} 11. cxd5 {[%emt 0:00:06]} Bxd5 {[%emt 0:00:32]} 12. Nxe4 {[%emt 0:00:05]} fxe4 {[%emt 0:00:08]} 13. Bxe4 {[%emt 0:00:01]} Nc6 {[%emt 0:00:05]} 14. Rc1 {[%emt 0:00:29]} Qd7 {[%emt 0:00:41]} 15. Bxd5 {[%emt 0:00:18]} Qxd5 {[%emt 0:00:02]} 16. Ne5 {[%emt 0:00:02]} Nxd4 {[%emt 0:00:22]} 17. Nc6 {[%emt 0:00:13]} 1-0

[Event "RUS-ch Women Blitz 2019"]
[Site "Sochi"]
[Date "2019.10.17"]
[Round "12.8"]
[White "Bykova, Anastasia"]
[Black "Sukhareva, Evgeniya"]
[Result "0-1"]
[ECO "E06"]
[WhiteElo "2247"]
[BlackElo "2122"]
[Annotator "NA"]
[PlyCount "92"]
[EventDate "2019.10.17"]
[EventType "swiss"]
[EventCountry "RUS"]
[SourceTitle "playchess.com"]
[Source "ChessBase"]
[SourceQuality "1"]
[TimeControl "180+2"]

1. d4 {[%emt 0:00:00]} d5 {[%emt 0:00:00]} 2. c4 {[%emt 0:00:00]} e6 {[%emt 0:00:00]} 3. g3 {[%emt 0:00:01]} Nf6 {[%emt 0:00:04]} 4. Nf3 {[%emt 0:00:00]} Be7 {[%emt 0:00:04]} 5. Bg2 {[%emt 0:00:01]} O-O {[%emt 0:00:03]} 6. O-O {[%emt 0:00:02]} c6 {[%emt 0:00:01]} 7. Nbd2 {[%emt 0:00:01]} b6 {[%emt 0:00:03]} 8. Qc2 {[%emt 0:00:05]} Na6 {[%emt 0:00:07]} 9. a3 {[%emt 0:00:01]} Bb7 {[%emt 0:00:07]} 10. e4 {[%emt 0:00:01]} c5 {[%emt 0:00:02]} 11. e5 {[%emt 0:00:04]} Nd7 {[%emt 0:00:02]} 12. dxc5 {[%emt 0:00:08]} bxc5 {[%emt 0:00:25]} 13. b3 {[%emt 0:00:04]} d4 {[%emt 0:00:10]} 14. Ng5 {[%emt 0:00:10]} Bxg5 {[%emt 0:00:07]} 15. Bxb7 {[%emt 0:00:01]} Nc7 {[%emt 0:00:15]} 16. Bxa8 {[%emt 0:00:02]} Qxa8 {[%emt 0:00:02]} 17. f4 {[%emt 0:00:07]} Be7 {[%emt 0:00:02]} 18. Nf3 {[%emt 0:00:20]} g6 {[%emt 0:00:10]} 19. Bd2 {[%emt 0:00:09]} Ne8 {[%emt 0:00:20]} 20. b4 {[%emt 0:00:11]} Ng7 {[%emt 0:00:01]} 21. Qd3 {[%emt 0:00:11]} h5 {[%emt 0:00:11]} 22. h3 {[%emt 0:00:09]} Nf5 {[%emt 0:00:30]} 23. g4 {[%emt 0:00:01]} hxg4 {[%emt 0:00:07]} 24. hxg4 {[%emt 0:00:01]} Nh6 {[%emt 0:00:02]} 25. f5 {[%emt 0:00:05]} Nxg4 {[%emt 0:00:08]} 26. fxg6 {[%emt 0:00:06]} Ndxe5 {[%emt 0:00:11]} 27. gxf7+ {[%emt 0:00:18]} Rxf7 {[%emt 0:00:06]} 28. Nxe5 {[%emt 0:00:02]} Nxe5 {[%emt 0:00:02]} 29. Rxf7 {[%emt 0:01:02]} Nxd3 {[%emt 0:00:04]} 30. Rxe7 {[%emt 0:00:01]} Qf3 {[%emt 0:00:05]} 31. Re8+ {[%emt 0:00:10]} Kg7 {[%emt 0:00:12]} 32. Re7+ {[%emt 0:00:07]} Kf8 {[%emt 0:00:12]} 33. Rf1 {[%emt 0:00:05]} Qxf1+ {[%emt 0:00:01]} 34. Kxf1 {[%emt 0:00:01]} Kxe7 {[%emt 0:00:01]} 35. Ke2 {[%emt 0:00:01]} Ne5 {[%emt 0:00:03]} 36. bxc5 {[%emt 0:00:03]} Nxc4 {[%emt 0:00:01]} 37. Bb4 {[%emt 0:00:02]} e5 {[%emt 0:00:03]} 38. Kd3 {[%emt 0:00:05]} Nb2+ {[%emt 0:00:02]} 39. Ke4 {[%emt 0:00:02]} Ke6 {[%emt 0:00:01]} 40. c6 {[%emt 0:00:03]} Nc4 {[%emt 0:00:03]} 41. Bc5 {[%emt 0:00:03]} a6 {[%emt 0:00:03]} 42. a4 {[%emt 0:00:10]} Na5 {[%emt 0:00:03]} 43. Bxd4 {[%emt 0:00:04]} exd4 {[%emt 0:00:02]} 44. Kxd4 {[%emt 0:00:01]} Nxc6+ {[%emt 0:00:02]} 45. Kc5 {[%emt 0:00:00]} Kd7 {[%emt 0:00:01]} 46. Kb6 {[%emt 0:00:01]} a5 {[%emt 0:00:01]} 0-1

[Event "RUS-ch Women Blitz 2019"]
[Site "Sochi"]
[Date "2019.10.17"]
[Round "12.9"]
[White "Lysenko, Margarita"]
[Black "Yakimova, Mariya"]
[Result "0-1"]
[ECO "A90"]
[WhiteElo "2243"]
[BlackElo "2276"]
[Annotator "NA"]
[PlyCount "59"]
[EventDate "2019.10.17"]
[EventType "swiss"]
[EventCountry "RUS"]
[SourceTitle "playchess.com"]
[Source "ChessBase"]
[SourceQuality "1"]
[TimeControl "180+2"]

1. d4 {[%emt 0:00:00]} f5 {[%emt 0:00:00]} 2. c4 {[%emt 0:00:03]} Nf6 {[%emt 0:00:00]} 3. g3 {[%emt 0:00:01]} e6 {[%emt 0:00:00]} 4. Bg2 {[%emt 0:00:03]} d5 {[%emt 0:00:01]} 5. Nh3 {[%emt 0:00:12]} c6 {[%emt 0:00:03]} 6. O-O {[%emt 0:00:05]} Bd6 {[%emt 0:00:01]} 7. Bf4 {[%emt 0:00:07]} Be7 {[%emt 0:00:01]} 8. Nc3 {[%emt 0:00:17]} O-O {[%emt 0:00:02]} 9. Qc2 {[%emt 0:00:05]} h6 {[%emt 0:00:05]} 10. Rab1 {[%emt 0:00:15]} g5 {[%emt 0:00:05]} 11. Be5 {[%emt 0:00:18]} Nbd7 {[%emt 0:00:01]} 12. cxd5 {[%emt 0:00:05]} cxd5 {[%emt 0:00:30]} 13. Nb5 {[%emt 0:00:16]} Nxe5 {[%emt 0:00:02]} 14. dxe5 {[%emt 0:00:01]} Ng4 {[%emt 0:00:00]} 15. Qc3 {[%emt 0:00:22]} Bd7 {[%emt 0:00:02]} 16. Nd6 {[%emt 0:00:01]} Bxd6 {[%emt 0:00:07]} 17. exd6 {[%emt 0:00:02]} Qb6 {[%emt 0:00:03]} 18. Qa3 {[%emt 0:00:30]} Ne5 {[%emt 0:00:01]} 19. Rbc1 {[%emt 0:00:16]} Rac8 {[%emt 0:00:23]} 20. Rxc8 {[%emt 0:00:16]} Rxc8 {[%emt 0:00:03]} 21. b3 {[%emt 0:00:04]} Nf7 {[%emt 0:00:10]} 22. Qb2 {[%emt 0:00:03]} Qxd6 {[%emt 0:00:14]} 23. Qf6 {[%emt 0:00:02]} Qe5 {[%emt 0:00:08]} 24. Qe7 {[%emt 0:00:02]} Bc6 {[%emt 0:00:02]} 25. f4 {[%emt 0:00:14]} Qd4+ {[%emt 0:00:11]} 26. Kh1 {[%emt 0:00:04]} Re8 {[%emt 0:00:04]} 27. Qa3 {[%emt 0:00:04]} g4 {[%emt 0:00:02]} 28. Nf2 {[%emt 0:00:02]} Bb5 {[%emt 0:00:37]} 29. Qc1 {[%emt 0:00:04]} Qb6 {[%emt 0:00:06]} 30. Nd3 {[%emt 0:00:06]} 0-1

[Event "RUS-ch Women Blitz 2019"]
[Site "Sochi"]
[Date "2019.10.17"]
[Round "12.10"]
[White "Murashova, Ekaterina"]
[Black "Semenova, Elena"]
[Result "1-0"]
[ECO "C47"]
[WhiteElo "2248"]
[BlackElo "2282"]
[Annotator "NA"]
[PlyCount "67"]
[EventDate "2019.10.17"]
[EventType "swiss"]
[EventCountry "RUS"]
[SourceTitle "playchess.com"]
[Source "ChessBase"]
[SourceQuality "1"]
[TimeControl "180+2"]

1. e4 {[%emt 0:00:00]} e5 {[%emt 0:00:00]} 2. Nf3 Nc6 3. Nc3 {[%emt 0:00:01]} Nf6 {[%emt 0:00:00]} 4. d4 {[%emt 0:00:00]} Bb4 {[%emt 0:00:01]} 5. Nxe5 {[%emt 0:00:02]} Qe7 {[%emt 0:00:04]} 6. Qd3 {[%emt 0:00:22]} Nxd4 {[%emt 0:00:10]} 7. Qxd4 {[%emt 0:00:15]} Bc5 {[%emt 0:00:00]} 8. Qc4 {[%emt 0:00:50]} Qxe5 {[%emt 0:00:02]} 9. f4 {[%emt 0:00:01]} Qe7 {[%emt 0:00:10]} 10. Bd2 {[%emt 0:00:16]} d6 {[%emt 0:00:39]} 11. O-O-O {[%emt 0:00:04]} Be6 {[%emt 0:00:25]} 12. Qd3 {[%emt 0:00:01]} Ng4 {[%emt 0:00:15]} 13. f5 {[%emt 0:00:16]} Bd7 {[%emt 0:00:25]} 14. Nd5 {[%emt 0:00:04]} Qd8 {[%emt 0:00:01]} 15. Qg3 {[%emt 0:00:04]} h5 {[%emt 0:00:13]} 16. h3 {[%emt 0:00:16]} c6 {[%emt 0:00:28]} 17. hxg4 {[%emt 0:00:07]} cxd5 {[%emt 0:00:00]} 18. exd5 {[%emt 0:00:05]} Qb6 {[%emt 0:00:12]} 19. Re1+ Kd8 20. Qb3 {[%emt 0:00:26]} Qxb3 {[%emt 0:00:16]} 21. axb3 {[%emt 0:00:00]} Kc7 {[%emt 0:00:02]} 22. gxh5 {[%emt 0:00:13]} Rae8 {[%emt 0:00:07]} 23. Rxe8 {[%emt 0:00:04]} Rxe8 {[%emt 0:00:01]} 24. g4 {[%emt 0:00:02]} Re4 {[%emt 0:00:02]} 25. Bd3 {[%emt 0:00:12]} Rxg4 {[%emt 0:00:02]} 26. f6 {[%emt 0:00:00]} Bd4 {[%emt 0:00:10]} 27. fxg7 Bxg7 {[%emt 0:00:01]} 28. h6 {[%emt 0:00:04]} Bh8 {[%emt 0:00:01]} 29. Bc3 {[%emt 0:00:02]} Rg8 {[%emt 0:00:03]} 30. h7 {[%emt 0:00:02]} Re8 {[%emt 0:00:02]} 31. Rg1 {[%emt 0:00:02]} Bxc3 {[%emt 0:00:05]} 32. bxc3 {[%emt 0:00:01]} f5 {[%emt 0:00:01]} 33. Rg8 {[%emt 0:00:04]} Re1+ {[%emt 0:00:01]} 34. Kd2 {[%emt 0:00:00]} 1-0